[Event "4th Baskent University Open 2019"]
[Site "Ankara"]
[Date "2019.06.18"]
[Round "2"]
[White "Sakalli, Mustafa"]
[Black "Koksal, Ege"]
[Result "1/2-1/2"]
[ECO "E01"]
[WhiteElo "1916"]
[BlackElo "2363"]
[Annotator "NA"]
[PlyCount "127"]
[EventDate "2019.06.18"]
[EventType "swiss"]
[EventCountry "TUR"]
[SourceTitle "playchess.com"]
[Source "ChessBase"]
[SourceQuality "1"]
[TimeControl "5400+30"]

1. c4 {[%emt 0:00:30]} Nf6 {[%emt 0:07:30]} 2. Nc3 {[%emt 0:00:30]} e6 {[%emt 0:04:30]} 3. g3 {[%emt 0:01:30]} d5 {[%emt 0:00:00]} 4. d4 {[%emt 0:00:30]} c6 {[%emt 0:03:00]} 5. Bg2 {[%emt 0:00:30]} dxc4 {[%emt 0:00:30]} 6. Nf3 {[%emt 0:00:30]} Nbd7 {[%emt 0:01:30]} 7. a4 {[%emt 0:02:30]} Bb4 {[%emt 0:00:30]} 8. O-O {[%emt 0:00:30]} a5 {[%emt 0:01:30]} 9. Qc2 {[%emt 0:00:30]} Nb6 {[%emt 0:02:30]} 10. Rd1 {[%emt 0:00:30]} O-O {[%emt 0:00:30]} 11. Ne5 {[%emt 0:01:30]} Qe7 {[%emt 0:35:30]} 12. Ne4 {[%emt 0:07:30]} Nfd5 {[%emt 0:00:30]} 13. Ng5 {[%emt 0:00:30]} Nf6 {[%emt 0:03:30]} 14. Ne4 {[%emt 0:00:30]} h6 {[%emt 0:02:30]} 15. Nxc4 {[%emt 0:01:30]} Nxc4 {[%emt 0:01:30]} 16. Qxc4 {[%emt 0:00:00]} Nd5 {[%emt 0:06:30]} 17. Nc5 {[%emt 0:02:00]} Nb6 {[%emt 0:01:30]} 18. Qc2 {[%emt 0:05:30]} e5 {[%emt 0:00:30]} 19. Nd3 {[%emt 0:03:30]} exd4 {[%emt 0:02:30]} 20. Nxb4 {[%emt 0:00:30]} Qxb4 {[%emt 0:02:30]} 21. b3 {[%emt 0:00:00]} Re8 {[%emt 0:03:52]} 22. Ba3 {[%emt 0:06:00]} Qc3 {[%emt 0:00:01]} 23. Qxc3 {[%emt 0:00:30]} dxc3 {[%emt 0:00:30]} 24. Bc5 {[%emt 0:00:00]} Nd5 {[%emt 0:05:19]} 25. Bxd5 {[%emt 0:01:00]} cxd5 {[%emt 0:00:02]} 26. Rac1 {[%emt 0:04:30]} Rxe2 {[%emt 0:01:44]} 27. Rxc3 {[%emt 0:00:30]} Be6 {[%emt 0:00:17]} 28. Kf1 {[%emt 0:07:30]} Rb2 {[%emt 0:01:01]} 29. Bd4 {[%emt 0:00:00]} Bh3+ {[%emt 0:02:36]} 30. Kg1 {[%emt 0:07:00]} Re8 {[%emt 0:01:06]} 31. Be3 {[%emt 0:01:30]} Re4 {[%emt 0:04:24]} 32. Rcd3 {[%emt 0:07:30]} Be6 {[%emt 0:01:41]} 33. Bd4 {[%emt 0:01:30]} Rc2 {[%emt 0:01:30]} 34. Re3 {[%emt 0:06:30]} Rxe3 {[%emt 0:01:05]} 35. fxe3 {[%emt 0:00:00]} Bf5 {[%emt 0:00:27]} 36. Bb6 {[%emt 0:00:00]} Be4 {[%emt 0:00:38]} 37. Bxa5 {[%emt 0:00:30]} Rg2+ {[%emt 0:00:42]} 38. Kf1 {[%emt 0:00:00]} Rxh2 {[%emt 0:00:00]} 39. Rd4 {[%emt 0:00:00]} Rh3 {[%emt 0:02:34]} 40. Be1 {[%emt 0:11:30]} Rh1+ {[%emt 0:00:17]} 41. Ke2 {[%emt 0:00:30]} Kh7 {[%emt 0:00:42]} 42. a5 {[%emt 0:00:00]} Rh2+ {[%emt 0:00:46]} 43. Bf2 {[%emt 0:00:00]} Rh1 {[%emt 0:00:00]} 44. Be1 {[%emt 0:00:00]} h5 {[%emt 0:00:51]} 45. b4 {[%emt 0:00:00]} Bg2 {[%emt 0:00:43]} 46. Rf4 {[%emt 0:03:30]} Bh3 {[%emt 0:00:37]} 47. Rxf7 {[%emt 0:01:30]} Bg4+ {[%emt 0:00:30]} 48. Kd2 {[%emt 0:00:30]} Rh2+ {[%emt 0:00:00]} 49. Rf2 {[%emt 0:00:00]} Rxf2+ {[%emt 0:00:01]} 50. Bxf2 {[%emt 0:00:00]} Kg6 {[%emt 0:00:00]} 51. Kd3 {[%emt 0:00:00]} Be6 {[%emt 0:01:10]} 52. Kd4 {[%emt 0:00:00]} Kf5 {[%emt 0:00:05]} 53. b5 {[%emt 0:00:30]} Bd7 {[%emt 0:01:02]} 54. Kc5 {[%emt 0:01:30]} Ke5 {[%emt 0:00:01]} 55. Be1 {[%emt 0:00:30]} g5 {[%emt 0:00:31]} 56. Bc3+ {[%emt 0:00:30]} Ke6 {[%emt 0:01:23]} 57. b6 {[%emt 0:00:30]} Bc8 {[%emt 0:00:18]} 58. Kd4 {[%emt 0:00:30]} h4 {[%emt 0:00:38]} 59. gxh4 {[%emt 0:00:30]} gxh4 {[%emt 0:00:00]} 60. Be1 {[%emt 0:00:30]} Kd6 {[%emt 0:00:29]} 61. Bxh4 {[%emt 0:00:00]} Kc6 {[%emt 0:00:08]} 62. Be1 {[%emt 0:00:00]} Bh3 {[%emt 0:00:00]} 63. Bd2 {[%emt 0:00:30]} Bg2 {[%emt 0:00:13]} 64. Be1 {[%emt 0:00:00]} 1/2-1/2

[Event "4th Baskent University Open 2019"]
[Site "Ankara"]
[Date "2019.06.18"]
[Round "2"]
[White "Kanli, Alperen"]
[Black "Aladag, Begum"]
[Result "1-0"]
[ECO "B46"]
[WhiteElo "1790"]
[BlackElo "1458"]
[Annotator "NA"]
[PlyCount "79"]
[EventDate "2019.06.18"]
[EventType "swiss"]
[EventCountry "TUR"]
[SourceTitle "playchess.com"]
[Source "ChessBase"]
[SourceQuality "1"]
[TimeControl "5400+30"]

1. e4 {[%emt 0:00:30]} c5 {[%emt 0:00:30]} 2. Nf3 {[%emt 0:00:00]} e6 {[%emt 0:00:30]} 3. d4 {[%emt 0:00:00]} cxd4 {[%emt 0:00:00]} 4. Nxd4 {[%emt 0:00:30]} a6 {[%emt 0:00:00]} 5. Nc3 {[%emt 0:00:30]} Qc7 {[%emt 0:00:30]} 6. Bd3 {[%emt 0:03:30]} Nc6 {[%emt 0:03:30]} 7. Nxc6 {[%emt 0:05:30]} bxc6 {[%emt 0:02:30]} 8. Qe2 {[%emt 0:03:30]} Bb4 {[%emt 0:07:30]} 9. Bd2 {[%emt 0:01:30]} Nf6 {[%emt 0:23:30]} 10. O-O {[%emt 0:02:30]} Bd6 {[%emt 0:05:30]} 11. f4 {[%emt 0:01:30]} Bc5+ {[%emt 0:00:30]} 12. Kh1 {[%emt 0:00:30]} d5 {[%emt 0:01:30]} 13. Qe1 {[%emt 0:11:30]} Bb7 {[%emt 0:09:30]} 14. Na4 {[%emt 0:03:30]} Bb6 {[%emt 0:10:30]} 15. Bc3 {[%emt 0:10:30]} dxe4 {[%emt 0:04:30]} 16. Be5 {[%emt 0:01:30]} Qd8 {[%emt 0:01:30]} 17. Bxf6 {[%emt 0:03:30]} gxf6 {[%emt 0:01:30]} 18. Bxe4 {[%emt 0:03:30]} Ba7 {[%emt 0:04:30]} 19. Qc3 {[%emt 0:00:30]} Rc8 {[%emt 0:01:30]} 20. Nc5 {[%emt 0:01:30]} Bxc5 {[%emt 0:00:00]} 21. Qxc5 {[%emt 0:00:30]} Qe7 {[%emt 0:00:00]} 22. Qc3 {[%emt 0:00:30]} h5 {[%emt 0:01:30]} 23. Rf3 {[%emt 0:00:30]} Rg8 {[%emt 0:01:59]} 24. Rd3 {[%emt 0:02:30]} c5 {[%emt 0:03:27]} 25. Bxb7 {[%emt 0:04:30]} Qxb7 {[%emt 0:00:30]} 26. Rd2 {[%emt 0:00:30]} Ke7 {[%emt 0:01:11]} 27. Rad1 {[%emt 0:00:30]} Rc7 {[%emt 0:02:21]} 28. Qd3 {[%emt 0:03:30]} Kf8 {[%emt 0:03:12]} 29. Qh3 {[%emt 0:00:30]} Ke7 {[%emt 0:01:12]} 30. Qd3 {[%emt 0:02:30]} Kf8 {[%emt 0:00:30]} 31. Qh7 {[%emt 0:00:30]} Rd7 {[%emt 0:04:22]} 32. Qxh5 {[%emt 0:01:30]} Ke8 {[%emt 0:02:12]} 33. Qe2 {[%emt 0:01:30]} Rd4 {[%emt 0:02:02]} 34. Rxd4 {[%emt 0:00:30]} cxd4 {[%emt 0:00:02]} 35. Rxd4 {[%emt 0:00:30]} Qxb2 {[%emt 0:00:59]} 36. Qd1 {[%emt 0:00:30]} Qb6 {[%emt 0:00:38]} 37. c4 {[%emt 0:00:30]} Rg6 {[%emt 0:01:41]} 38. c5 {[%emt 0:04:30]} Qc6 {[%emt 0:00:13]} 39. Rd8+ {[%emt 0:00:00]} Ke7 {[%emt 0:00:33]} 40. Qd6+ {[%emt 0:03:00]} 1-0

[Event "4th Baskent University Open 2019"]
[Site "Ankara"]
[Date "2019.06.18"]
[Round "2"]
[White "Subasi, Fidel"]
[Black "Yenice, Yusuf Erkan"]
[Result "0-1"]
[ECO "D00"]
[WhiteElo "1712"]
[BlackElo "1497"]
[Annotator "NA"]
[PlyCount "78"]
[EventDate "2019.06.18"]
[EventType "swiss"]
[EventCountry "TUR"]
[SourceTitle "playchess.com"]
[Source "ChessBase"]
[SourceQuality "1"]
[TimeControl "5400+30"]

1. d4 {[%emt 0:00:30]} d5 {[%emt 0:08:30]} 2. Nc3 {[%emt 0:01:30]} Nf6 {[%emt 0:00:00]} 3. Bf4 {[%emt 0:00:00]} Bf5 {[%emt 0:03:00]} 4. f3 {[%emt 0:00:00]} h6 {[%emt 0:03:30]} 5. e3 {[%emt 0:03:30]} c6 {[%emt 0:05:30]} 6. Bd3 {[%emt 0:04:30]} Bxd3 {[%emt 0:00:30]} 7. Qxd3 {[%emt 0:00:00]} e6 {[%emt 0:03:30]} 8. O-O-O {[%emt 0:03:00]} Qa5 {[%emt 0:04:30]} 9. e4 {[%emt 0:08:30]} Na6 {[%emt 0:06:30]} 10. a3 {[%emt 0:05:30]} b5 {[%emt 0:03:30]} 11. Nb1 {[%emt 0:08:30]} b4 {[%emt 0:02:30]} 12. Bd2 {[%emt 0:06:30]} Qb6 {[%emt 0:04:30]} 13. a4 {[%emt 0:04:30]} c5 {[%emt 0:02:30]} 14. Nh3 {[%emt 0:05:30]} cxd4 {[%emt 0:04:30]} 15. exd5 {[%emt 0:13:30]} Nxd5 {[%emt 0:00:30]} 16. Nf4 {[%emt 0:00:30]} Nxf4 {[%emt 0:05:30]} 17. Bxf4 {[%emt 0:00:30]} Bc5 {[%emt 0:01:30]} 18. Nd2 {[%emt 0:01:30]} O-O {[%emt 0:03:30]} 19. h4 {[%emt 0:04:30]} Bd6 {[%emt 0:03:30]} 20. Bxd6 {[%emt 0:04:30]} Qxd6 {[%emt 0:00:30]} 21. Ne4 {[%emt 0:01:30]} Qc6 {[%emt 0:03:30]} 22. b3 {[%emt 0:02:30]} Rac8 {[%emt 0:01:30]} 23. g4 {[%emt 0:00:30]} Nc5 {[%emt 0:01:30]} 24. Nxc5 {[%emt 0:00:30]} Qxc5 {[%emt 0:00:00]} 25. Rh2 {[%emt 0:02:05]} e5 {[%emt 0:05:00]} 26. Re2 {[%emt 0:01:27]} Rc6 {[%emt 0:04:22]} 27. Rde1 {[%emt 0:01:00]} Rfc8 {[%emt 0:01:49]} 28. Kb1 {[%emt 0:00:57]} Qc3 {[%emt 0:02:41]} 29. Qe4 {[%emt 0:01:42]} Rf6 {[%emt 0:06:30]} 30. Qxe5 {[%emt 0:02:41]} Rxf3 {[%emt 0:01:15]} 31. Rd1 {[%emt 0:04:56]} Re3 {[%emt 0:01:00]} 32. Qh2 {[%emt 0:00:51]} Rh3 {[%emt 0:01:31]} 33. Qf2 {[%emt 0:00:51]} d3 {[%emt 0:00:36]} 34. Red2 {[%emt 0:01:06]} dxc2+ {[%emt 0:00:38]} 35. Rxc2 {[%emt 0:00:53]} Qxb3+ {[%emt 0:00:10]} 36. Kc1 {[%emt 0:00:25]} Rxc2+ {[%emt 0:00:57]} 37. Qxc2 {[%emt 0:00:06]} Qa3+ {[%emt 0:01:19]} 38. Qb2 {[%emt 0:00:21]} Rc3+ {[%emt 0:01:59]} 39. Kb1 {[%emt 0:00:07]} Rb3 {[%emt 0:00:00]} 0-1

[Event "4th Baskent University Open 2019"]
[Site "Ankara"]
[Date "2019.06.18"]
[Round "2"]
[White "Taban, Yagiz"]
[Black "Kaynak, Deniz Can"]
[Result "1-0"]
[ECO "C47"]
[WhiteElo "1654"]
[BlackElo "1467"]
[Annotator "NA"]
[PlyCount "113"]
[EventDate "2019.06.18"]
[EventType "swiss"]
[EventCountry "TUR"]
[SourceTitle "playchess.com"]
[Source "ChessBase"]
[SourceQuality "1"]
[TimeControl "5400+30"]

1. Nc3 {[%emt 0:00:30]} Nf6 {[%emt 0:00:30]} 2. e4 {[%emt 0:02:30]} e5 {[%emt 0:00:00]} 3. d3 {[%emt 0:02:30]} Bc5 {[%emt 0:07:00]} 4. Be2 {[%emt 0:05:30]} Nc6 {[%emt 0:03:30]} 5. Nf3 {[%emt 0:03:30]} d6 {[%emt 0:00:30]} 6. O-O {[%emt 0:00:30]} O-O {[%emt 0:00:30]} 7. Bg5 {[%emt 0:01:30]} h6 {[%emt 0:02:30]} 8. Be3 {[%emt 0:03:30]} Bb6 {[%emt 0:07:30]} 9. Qd2 {[%emt 0:11:30]} Ng4 {[%emt 0:09:30]} 10. Bxb6 {[%emt 0:01:30]} axb6 {[%emt 0:00:30]} 11. Nd5 {[%emt 0:14:30]} Ne7 {[%emt 0:23:30]} 12. Ne3 {[%emt 0:23:30]} Ng6 {[%emt 0:10:30]} 13. g3 {[%emt 0:14:33]} Be6 {[%emt 0:12:20]} 14. c4 {[%emt 0:01:45]} Qd7 {[%emt 0:05:12]} 15. Ne1 {[%emt 0:06:09]} Nxe3 {[%emt 0:03:01]} 16. fxe3 {[%emt 0:02:06]} f5 {[%emt 0:02:34]} 17. exf5 {[%emt 0:00:30]} Bxf5 {[%emt 0:00:07]} 18. Ng2 {[%emt 0:00:39]} Bh3 {[%emt 0:00:39]} 19. Bf3 {[%emt 0:00:33]} Rae8 {[%emt 0:07:04]} 20. Bh5 {[%emt 0:01:16]} Qe6 {[%emt 0:01:41]} 21. b4 {[%emt 0:01:14]} Rf5 {[%emt 0:01:14]} 22. Rxf5 {[%emt 0:01:11]} Qxf5 {[%emt 0:00:30]} 23. Bxg6 {[%emt 0:00:30]} Qxg6 {[%emt 0:00:00]} 24. Rf1 {[%emt 0:00:00]} Bxg2 {[%emt 0:00:41]} 25. Kxg2 {[%emt 0:00:01]} Ra8 {[%emt 0:00:38]} 26. e4 {[%emt 0:00:52]} Qe6 {[%emt 0:00:28]} 27. Qb2 {[%emt 0:00:40]} b5 {[%emt 0:00:40]} 28. Qb3 {[%emt 0:00:01]} bxc4 {[%emt 0:00:36]} 29. dxc4 {[%emt 0:00:07]} b5 {[%emt 0:00:14]} 30. Rc1 {[%emt 0:01:16]} bxc4 {[%emt 0:01:13]} 31. Rxc4 {[%emt 0:00:10]} Kf8 {[%emt 0:00:05]} 32. Kg1 {[%emt 0:00:53]} Ra7 {[%emt 0:00:25]} 33. Qc2 {[%emt 0:00:25]} Qf7 {[%emt 0:00:32]} 34. Kg2 {[%emt 0:00:29]} Ke8 {[%emt 0:00:33]} 35. a4 {[%emt 0:00:36]} Qd7 {[%emt 0:00:13]} 36. b5 {[%emt 0:00:29]} Kd8 {[%emt 0:00:32]} 37. Qf2 {[%emt 0:00:17]} Qe6 {[%emt 0:00:45]} 38. Qf8+ {[%emt 0:00:44]} Kd7 {[%emt 0:00:20]} 39. Qxg7+ {[%emt 0:00:25]} Kc8 {[%emt 0:00:15]} 40. Qf8+ {[%emt 0:00:36]} Kb7 {[%emt 0:00:30]} 41. Qf1 {[%emt 0:00:16]} Kb6 {[%emt 0:00:43]} 42. Qf2+ {[%emt 0:00:50]} Kb7 {[%emt 0:00:05]} 43. Rxc7+ {[%emt 0:00:13]} Kxc7 {[%emt 0:00:39]} 44. Qxa7+ {[%emt 0:00:02]} Kd8 {[%emt 0:00:17]} 45. Qb8+ {[%emt 0:00:02]} Ke7 {[%emt 0:00:00]} 46. Qb7+ {[%emt 0:00:13]} Ke8 {[%emt 0:00:38]} 47. Qd5 {[%emt 0:00:38]} Qg4 {[%emt 0:00:10]} 48. Qd3 {[%emt 0:01:28]} Qe6 {[%emt 0:00:38]} 49. Qc2 {[%emt 0:00:22]} Kd8 {[%emt 0:00:48]} 50. b6 {[%emt 0:00:17]} Qd7 {[%emt 0:01:04]} 51. Qc7+ {[%emt 0:01:00]} Qxc7 {[%emt 0:00:07]} 52. bxc7+ {[%emt 0:00:07]} Kxc7 {[%emt 0:00:31]} 53. g4 {[%emt 0:00:30]} Kb6 {[%emt 0:00:30]} 54. h4 {[%emt 0:00:00]} Kc6 {[%emt 0:00:29]} 55. g5 {[%emt 0:00:00]} hxg5 {[%emt 0:00:12]} 56. hxg5 {[%emt 0:00:00]} Kd7 {[%emt 0:01:20]} 57. a5 {[%emt 0:00:00]} 1-0

[Event "4th Baskent University Open 2019"]
[Site "Ankara"]
[Date "2019.06.18"]
[Round "2"]
[White "Aslan, Ali Efe"]
[Black "Yildirim, Ibrahim Halil"]
[Result "0-1"]
[ECO "B11"]
[WhiteElo "1492"]
[BlackElo "1787"]
[Annotator "NA"]
[PlyCount "88"]
[EventDate "2019.06.18"]
[EventType "swiss"]
[EventCountry "TUR"]
[SourceTitle "playchess.com"]
[Source "ChessBase"]
[SourceQuality "1"]
[TimeControl "5400+30"]

1. e4 {[%emt 0:00:30]} c6 {[%emt 0:00:30]} 2. Nc3 {[%emt 0:00:30]} d5 {[%emt 0:00:30]} 3. Nf3 {[%emt 0:00:00]} Nf6 {[%emt 0:08:30]} 4. e5 {[%emt 0:02:00]} Ne4 {[%emt 0:00:30]} 5. d4 {[%emt 0:03:30]} Bf5 {[%emt 0:09:30]} 6. Bd3 {[%emt 0:04:30]} e6 {[%emt 0:11:30]} 7. O-O {[%emt 0:05:30]} c5 {[%emt 0:06:30]} 8. dxc5 {[%emt 0:03:30]} Nxc3 {[%emt 0:00:30]} 9. bxc3 {[%emt 0:00:00]} Bxd3 {[%emt 0:01:30]} 10. Qxd3 {[%emt 0:00:00]} Nd7 {[%emt 0:05:30]} 11. Be3 {[%emt 0:01:30]} Qc7 {[%emt 0:01:30]} 12. Rfb1 {[%emt 0:03:30]} Bxc5 {[%emt 0:05:30]} 13. Bxc5 {[%emt 0:00:30]} Nxc5 {[%emt 0:00:30]} 14. Qb5+ {[%emt 0:01:30]} Qc6 {[%emt 0:00:30]} 15. Qxc6+ {[%emt 0:00:30]} bxc6 {[%emt 0:00:00]} 16. Nd4 {[%emt 0:00:30]} Kd7 {[%emt 0:00:00]} 17. Rb4 {[%emt 0:02:30]} Rhb8 {[%emt 0:04:30]} 18. Rab1 {[%emt 0:01:30]} Rxb4 {[%emt 0:00:30]} 19. cxb4 {[%emt 0:04:30]} Rb8 {[%emt 0:05:30]} 20. a3 {[%emt 0:03:30]} Ne4 {[%emt 0:03:30]} 21. Nb3 {[%emt 0:01:30]} Nc3 {[%emt 0:09:30]} 22. Re1 {[%emt 0:01:30]} Na4 {[%emt 0:01:30]} 23. Re3 {[%emt 0:02:30]} Ke7 {[%emt 0:10:32]} 24. Rh3 {[%emt 0:05:30]} h6 {[%emt 0:02:44]} 25. Rg3 {[%emt 0:01:30]} g6 {[%emt 0:02:35]} 26. f4 {[%emt 0:02:30]} Rc8 {[%emt 0:01:20]} 27. Rh3 {[%emt 0:01:30]} h5 {[%emt 0:00:06]} 28. Kf1 {[%emt 0:00:30]} Kd7 {[%emt 0:02:11]} 29. Nc5+ {[%emt 0:06:30]} Nxc5 {[%emt 0:00:31]} 30. bxc5 {[%emt 0:00:00]} Rb8 {[%emt 0:00:21]} 31. Rb3 {[%emt 0:00:00]} Rb5 {[%emt 0:03:22]} 32. Rc3 {[%emt 0:06:30]} Kc7 {[%emt 0:00:07]} 33. Ke2 {[%emt 0:00:30]} Kb7 {[%emt 0:01:26]} 34. Kd3 {[%emt 0:00:30]} Ka6 {[%emt 0:02:30]} 35. Kd4 {[%emt 0:00:30]} Ka5 {[%emt 0:00:30]} 36. Rf3 {[%emt 0:10:30]} Ka4 {[%emt 0:00:48]} 37. Rf1 {[%emt 0:00:00]} Rb2 {[%emt 0:00:43]} 38. f5 {[%emt 0:03:00]} exf5 {[%emt 0:00:37]} 39. c4 {[%emt 0:04:30]} dxc4 {[%emt 0:00:26]} 40. Kxc4 {[%emt 0:00:30]} Re2 {[%emt 0:00:39]} 41. Rb1 {[%emt 0:00:58]} Re4+ {[%emt 0:00:08]} 42. Kc3 {[%emt 0:00:41]} Rxe5 {[%emt 0:00:05]} 43. Rb4+ {[%emt 0:00:00]} Kxa3 {[%emt 0:01:05]} 44. Rb7 {[%emt 0:01:06]} Rxc5+ {[%emt 0:00:11]} 0-1

[Event "4th Baskent University Open 2019"]
[Site "Ankara"]
[Date "2019.06.18"]
[Round "2"]
[White "Akin, Duru"]
[Black "Kaya, Onur"]
[Result "1-0"]
[ECO "C12"]
[WhiteElo "1480"]
[BlackElo "1681"]
[Annotator "NA"]
[PlyCount "121"]
[EventDate "2019.06.18"]
[EventType "swiss"]
[EventCountry "TUR"]
[SourceTitle "playchess.com"]
[Source "ChessBase"]
[SourceQuality "1"]
[TimeControl "5400+30"]

1. e4 {[%emt 0:00:30]} e6 {[%emt 0:02:30]} 2. d4 {[%emt 0:00:30]} d5 {[%emt 0:00:30]} 3. Nc3 {[%emt 0:00:30]} Nf6 {[%emt 0:00:00]} 4. Bg5 {[%emt 0:00:00]} Bb4 {[%emt 0:01:00]} 5. e5 {[%emt 0:00:00]} h6 {[%emt 0:00:30]} 6. Bd2 {[%emt 0:00:30]} Bxc3 {[%emt 0:00:30]} 7. bxc3 {[%emt 0:00:00]} Ne4 {[%emt 0:00:00]} 8. Qg4 {[%emt 0:00:00]} Kf8 {[%emt 0:09:00]} 9. h4 {[%emt 0:05:30]} Nxd2 {[%emt 0:17:30]} 10. Kxd2 {[%emt 0:00:30]} c5 {[%emt 0:00:00]} 11. Rh3 {[%emt 0:03:30]} cxd4 {[%emt 0:10:00]} 12. cxd4 {[%emt 0:03:30]} Qa5+ {[%emt 0:08:30]} 13. c3 {[%emt 0:04:30]} Nc6 {[%emt 0:01:30]} 14. Bd3 {[%emt 0:01:30]} Ne7 {[%emt 0:02:30]} 15. Rg3 {[%emt 0:01:30]} Rg8 {[%emt 0:01:30]} 16. Qf4 {[%emt 0:12:30]} Qc7 {[%emt 0:20:30]} 17. Bh7 {[%emt 0:12:30]} Nf5 {[%emt 0:01:30]} 18. Bxf5 {[%emt 0:00:30]} exf5 {[%emt 0:00:30]} 19. h5 {[%emt 0:00:00]} Qa5 {[%emt 0:05:20]} 20. e6 {[%emt 0:08:00]} Bxe6 {[%emt 0:05:19]} 21. Qd6+ {[%emt 0:00:30]} Ke8 {[%emt 0:00:00]} 22. Re3 {[%emt 0:00:00]} Qd8 {[%emt 0:03:56]} 23. Rxe6+ {[%emt 0:03:00]} fxe6 {[%emt 0:00:30]} 24. Qxe6+ {[%emt 0:00:30]} Kf8 {[%emt 0:00:00]} 25. Nf3 {[%emt 0:02:30]} Qf6 {[%emt 0:06:59]} 26. Qxd5 {[%emt 0:00:30]} Rd8 {[%emt 0:01:42]} 27. Qc5+ {[%emt 0:00:30]} Rd6 {[%emt 0:01:00]} 28. Ne5 {[%emt 0:06:30]} Ke8 {[%emt 0:00:00]} 29. Re1 {[%emt 0:00:30]} Kd8 {[%emt 0:00:48]} 30. Nf7+ {[%emt 0:00:00]} Kd7 {[%emt 0:00:20]} 31. Nxd6 {[%emt 0:01:00]} Qxd6 {[%emt 0:00:01]} 32. Qxf5+ {[%emt 0:00:00]} Kd8 {[%emt 0:01:07]} 33. Re6 {[%emt 0:00:00]} Qd7 {[%emt 0:00:30]} 34. d5 {[%emt 0:00:30]} Re8 {[%emt 0:00:45]} 35. Rxe8+ {[%emt 0:00:30]} Qxe8 {[%emt 0:00:11]} 36. Qg6 {[%emt 0:01:30]} Qe5 {[%emt 0:00:44]} 37. g3 {[%emt 0:04:30]} Kc7 {[%emt 0:00:43]} 38. Qf7+ {[%emt 0:00:30]} Kd6 {[%emt 0:00:22]} 39. Qe6+ {[%emt 0:03:30]} Qxe6 {[%emt 0:00:03]} 40. dxe6 {[%emt 0:00:00]} Kxe6 {[%emt 0:00:30]} 41. g4 {[%emt 0:00:00]} Kf6 {[%emt 0:00:31]} 42. f4 {[%emt 0:00:00]} Ke6 {[%emt 0:00:38]} 43. c4 {[%emt 0:00:00]} b6 {[%emt 0:00:39]} 44. Kd3 {[%emt 0:00:30]} Kd7 {[%emt 0:00:26]} 45. Ke4 {[%emt 0:01:30]} Ke6 {[%emt 0:00:07]} 46. g5 {[%emt 0:01:30]} Ke7 {[%emt 0:00:50]} 47. gxh6 {[%emt 0:00:30]} gxh6 {[%emt 0:00:01]} 48. Ke5 {[%emt 0:00:30]} a6 {[%emt 0:00:45]} 49. f5 {[%emt 0:00:30]} Kf7 {[%emt 0:00:02]} 50. f6 {[%emt 0:00:00]} Kf8 {[%emt 0:00:18]} 51. Ke6 {[%emt 0:00:00]} a5 {[%emt 0:01:06]} 52. a4 {[%emt 0:00:30]} Ke8 {[%emt 0:00:00]} 53. Ke5 {[%emt 0:00:30]} Kf7 {[%emt 0:00:18]} 54. Kf5 {[%emt 0:00:30]} Kf8 {[%emt 0:00:13]} 55. Kg6 {[%emt 0:00:00]} Kg8 {[%emt 0:00:30]} 56. Kxh6 {[%emt 0:00:00]} Kf7 {[%emt 0:00:00]} 57. Kg5 {[%emt 0:00:00]} b5 {[%emt 0:00:08]} 58. cxb5 {[%emt 0:00:00]} Kg8 {[%emt 0:00:32]} 59. b6 {[%emt 0:00:00]} Kh8 {[%emt 0:00:02]} 60. b7 {[%emt 0:00:00]} Kh7 {[%emt 0:00:30]} 61. f7 {[%emt 0:00:30]} 1-0

[Event "4th Baskent University Open 2019"]
[Site "Ankara"]
[Date "2019.06.18"]
[Round "2"]
[White "Erturan, Ahmethan Tahsin"]
[Black "Uysal, Ugur"]
[Result "1/2-1/2"]
[ECO "B41"]
[WhiteElo "1422"]
[BlackElo "1644"]
[Annotator "NA"]
[PlyCount "97"]
[EventDate "2019.06.18"]
[EventType "swiss"]
[EventCountry "TUR"]
[SourceTitle "playchess.com"]
[Source "ChessBase"]
[SourceQuality "1"]
[TimeControl "5400+30"]

1. e4 {[%emt 0:00:30]} c5 {[%emt 0:00:30]} 2. Ne2 {[%emt 0:00:30]} e6 {[%emt 0:00:30]} 3. c4 {[%emt 0:00:00]} a6 {[%emt 0:01:30]} 4. Nbc3 {[%emt 0:00:00]} Qc7 {[%emt 0:01:30]} 5. d4 {[%emt 0:01:30]} cxd4 {[%emt 0:00:00]} 6. Nxd4 {[%emt 0:00:00]} Nf6 {[%emt 0:00:00]} 7. Be2 {[%emt 0:01:00]} Be7 {[%emt 0:00:30]} 8. Be3 {[%emt 0:00:00]} O-O {[%emt 0:01:30]} 9. O-O {[%emt 0:01:00]} d6 {[%emt 0:00:30]} 10. a4 {[%emt 0:01:30]} b6 {[%emt 0:00:30]} 11. Rc1 {[%emt 0:01:30]} Bb7 {[%emt 0:00:30]} 12. f3 {[%emt 0:00:30]} Nbd7 {[%emt 0:00:30]} 13. Ra1 {[%emt 0:01:30]} Ne5 {[%emt 0:07:30]} 14. Qb3 {[%emt 0:02:30]} Rac8 {[%emt 0:01:30]} 15. Rfc1 {[%emt 0:01:30]} Nfd7 {[%emt 0:03:30]} 16. f4 {[%emt 0:02:30]} Nc6 {[%emt 0:01:30]} 17. f5 {[%emt 0:03:30]} Nxd4 {[%emt 0:01:30]} 18. Bxd4 {[%emt 0:00:30]} e5 {[%emt 0:02:30]} 19. Be3 {[%emt 0:01:30]} Nc5 {[%emt 0:05:30]} 20. Qc2 {[%emt 0:00:30]} a5 {[%emt 0:07:30]} 21. Nd5 {[%emt 0:03:30]} Bxd5 {[%emt 0:00:00]} 22. exd5 {[%emt 0:00:30]} Qd8 {[%emt 0:11:00]} 23. Rf1 {[%emt 0:03:30]} Bg5 {[%emt 0:02:30]} 24. Bxg5 {[%emt 0:02:30]} Qxg5 {[%emt 0:00:30]} 25. Rf3 {[%emt 0:00:30]} f6 {[%emt 0:08:30]} 26. Raa3 {[%emt 0:05:30]} Qg4 {[%emt 0:06:30]} 27. h3 {[%emt 0:21:30]} Qd4+ {[%emt 0:00:30]} 28. Kh2 {[%emt 0:00:00]} e4 {[%emt 0:06:30]} 29. Rf4 {[%emt 0:06:00]} Rfe8 {[%emt 0:06:30]} 30. Rg3 {[%emt 0:06:30]} Qe5 {[%emt 0:07:34]} 31. Rfg4 {[%emt 0:02:30]} Rc7 {[%emt 0:00:16]} 32. h4 {[%emt 0:07:30]} Qxf5 {[%emt 0:03:25]} 33. b3 {[%emt 0:04:30]} Qe5 {[%emt 0:03:08]} 34. Kh1 {[%emt 0:04:40]} e3 {[%emt 0:01:43]} 35. Kg1 {[%emt 0:01:58]} Kh8 {[%emt 0:02:21]} 36. h5 {[%emt 0:00:47]} f5 {[%emt 0:04:43]} 37. Rg5 {[%emt 0:04:13]} Ne4 {[%emt 0:00:29]} 38. Rxe3 {[%emt 0:02:50]} Qd4 {[%emt 0:00:04]} 39. Qd3 {[%emt 0:00:26]} Qa1+ {[%emt 0:00:40]} 40. Bf1 {[%emt 0:02:14]} Qf6 {[%emt 0:00:34]} 41. Rgg3 {[%emt 0:00:18]} Rce7 {[%emt 0:00:18]} 42. Rgf3 {[%emt 0:01:36]} f4 {[%emt 0:02:15]} 43. Re2 {[%emt 0:02:14]} Ng5 {[%emt 0:00:07]} 44. Rff2 {[%emt 0:00:02]} f3 {[%emt 0:01:11]} 45. Rxe7 {[%emt 0:00:41]} Rxe7 {[%emt 0:00:05]} 46. gxf3 {[%emt 0:00:22]} Qf4 {[%emt 0:00:14]} 47. Bg2 {[%emt 0:01:17]} Re3 {[%emt 0:00:55]} 48. Qd2 {[%emt 0:00:49]} h6 {[%emt 0:00:36]} 49. Re2 {[%emt 0:01:00]} 1/2-1/2